bitfinex/quotes_SOLUSD_20241226
["timestamp","ask_amount","ask_price","bid_price","bid_amount"]
[1735220813328,6.4173,188.78,188.71,15.17706703]
[1735220813639,6.4173,188.78,188.67,15.63183985]
[1735220813640,6.4173,188.78,188.72,15.17706703]
[1735220814001,6.4173,188.78,188.71,15.17706703]
[1735220814431,6.4173,188.78,188.69,15.17706703]
[1735220814727,6.4173,188.78,188.7,15.17706703]
[1735220818113,6.4173,188.78,188.69,15.17706703]
[1735220818523,6.4173,188.78,188.7,15.17706703]
[1735220821134,6.4173,188.78,188.71,15.17706703]
[1735220821338,6.4173,188.78,188.68,35.17706703]
[1735220821520,6.4173,188.78,188.68,20.0]
[1735220821846,6.4173,188.78,188.68,15.17706703]
[1735220822204,6.4173,188.78,188.68,9.72670127]
[1735220822408,6.4173,188.78,188.69,9.72670127]
[1735220822724,6.4173,188.78,188.7,9.72670127]
[1735220823044,6.4173,188.78,188.71,9.72670127]
[1735220823407,6.4173,188.78,188.67,9.72670127]
[1735220823743,23.902374,188.77,188.66,9.72670127]
[1735220824113,23.902374,188.77,188.61,13.2542]
[1735220824114,1.5509,188.76,188.61,13.2542]
[1735220824313,20.0,188.72,188.63,9.72670127]
[1735220824516,6.4173,188.71,188.62,9.72670127]
[1735220825539,6.4173,188.71,188.61,9.72670127]
[1735220826147,6.4173,188.71,188.61,15.20980298]
[1735220827839,0.12549,188.68,188.59,15.20980298]
[1735220828048,20.0,188.66,188.58,15.20980298]
[1735220828220,20.0,188.66,188.57,15.20980298]
[1735220828428,20.0,188.66,188.58,15.20980298]
[1735220830043,20.0,188.66,188.56,15.20980298]
[1735220830243,20.0,188.66,188.58,15.20980298]
[1735220830721,20.0,188.66,188.57,15.20980298]
[1735220831423,20.0,188.66,188.56,15.20980298]
[1735220831632,0.12549,188.65,188.56,15.20980298]
[1735220832645,6.3064,188.64,188.55,15.20980298]
[1735220832834,1.5509,188.62,188.53,15.20980298]
[1735220833032,20.0,188.6,188.51,15.20980298]
[1735220833242,20.0,188.6,188.52,15.20980298]
[1735220833546,20.0,188.6,188.48,14.05880074]
[1735220833721,0.12549,188.59,188.51,15.20980298]
[1735220834251,0.12549,188.59,188.52,15.20980298]
[1735220835953,0.12549,188.59,188.51,15.20980298]
[1735220839351,0.12549,188.59,188.5,15.20980298]
[1735220839554,23.902374,188.59,188.49,15.20980298]
[1735220839855,23.902374,188.59,188.46,1.6324]
[1735220839856,6.1054,188.58,188.46,1.6324]
[1735220840035,20.0,188.55,188.48,15.20980298]
[1735220840439,6.1054,188.58,188.51,15.20980298]
[1735220840642,13.85956186,188.62,188.53,15.20980298]
[1735220840842,23.902374,188.61,188.51,15.20980298]
[1735220841231,23.902374,188.61,188.5,15.20980298]
[1735220842244,23.902374,188.61,188.52,15.20980298]
[1735220842444,23.902374,188.61,188.51,15.20980298]
[1735220842666,23.902374,188.61,188.52,15.20980298]
[1735220842858,20.0,188.59,188.52,15.20980298]
[1735220843069,0.12549,188.61,188.53,15.20980298]
[1735220843931,0.12549,188.61,188.52,15.20980298]
[1735220844248,20.0,188.58,188.5,15.20980298]
[1735220845765,20.0,188.58,188.51,15.20980298]
[1735220848077,20.0,188.58,188.5,15.20980298]
[1735220848281,20.0,188.58,188.5,9.7449659]
[1735220850225,20.0,188.58,188.51,9.7449659]
[1735220850786,20.0,188.59,188.51,9.7449659]
[1735220851085,7.6563,188.62,188.54,9.7449659]
[1735220852053,7.6563,188.62,188.55,9.7449659]
[1735220852250,1.5509,188.62,188.55,9.7449659]
[1735220852564,13.90566254,188.67,188.56,9.7449659]
[1735220852878,0.12549,188.66,188.56,9.7449659]
[1735220854194,20.0,188.64,188.56,9.7449659]
[1735220854785,0.12549,188.66,188.56,9.7449659]
[1735220855267,7.613,188.67,188.57,9.7449659]
[1735220855471,7.613,188.67,188.58,9.7449659]
[1735220855673,7.613,188.67,188.6,9.7449659]
[1735220855863,7.613,188.67,188.61,9.7449659]
[1735220856069,7.613,188.67,188.59,0.79505503]
[1735220856291,7.613,188.67,188.59,9.7449659]
[1735220857376,7.613,188.67,188.6,9.7449659]
[1735220858193,20.0,188.7,188.61,9.7449659]
[1735220858393,7.6338,188.72,188.62,9.7449659]
[1735220858564,7.6338,188.72,188.63,9.7449659]
[1735220858763,7.6338,188.72,188.62,9.7449659]
[1735220858987,23.902374,188.71,188.59,9.7449659]
[1735220859675,20.0,188.68,188.59,9.7449659]
[1735220860083,7.6338,188.72,188.61,9.7449659]
[1735220862701,7.6338,188.72,188.62,9.7449659]
[1735220863593,7.6338,188.72,188.61,9.7449659]
[1735220863804,7.6338,188.72,188.6,9.7449659]
[1735220864963,7.6338,188.72,188.61,9.7449659]
[1735220866193,7.6338,188.72,188.62,9.7449659]
[1735220869903,1.5509,188.76,188.67,9.7449659]
[1735220870091,1.5509,188.76,188.68,9.7449659]
[1735220870295,1.5509,188.76,188.7,9.7449659]
[1735220870516,1.5509,188.76,188.69,9.7449659]
[1735220876315,1.5509,188.76,188.67,0.79471553]
[1735220876526,1.5509,188.76,188.69,9.7449659]
[1735220877194,1.5509,188.76,188.66,9.7449659]
[1735220877613,1.5509,188.76,188.67,9.7449659]
[1735220877899,1.5509,188.76,188.68,9.7449659]
[1735220878408,1.5509,188.76,188.69,9.7449659]
[1735220878707,1.5509,188.76,188.68,9.7449659]
[1735220879513,1.5509,188.76,188.66,9.7449659]
[1735220879833,20.0,188.74,188.65,9.7449659]
[1735220879996,20.0,188.73,188.63,9.7449659]
[1735220880411,20.0,188.73,188.65,9.7449659]
[1735220881332,20.0,188.73,188.64,9.7449659]
[1735220881631,20.0,188.73,188.61,13.2547]
[1735220881632,20.12549,188.72,188.63,9.7449659]
[1735220881829,20.12549,188.72,188.62,9.7449659]
[1735220882349,0.12549,188.7,188.61,9.7449659]
[1735220883144,20.0,188.66,188.57,9.7449659]
[1735220884310,0.12549,188.65,188.57,9.7449659]
[1735220884520,20.0,188.64,188.55,9.7449659]
[1735220884718,20.12549,188.63,188.54,9.7449659]
[1735220886238,20.0,188.62,188.54,9.7449659]
[1735220886440,0.12549,188.61,188.54,9.7449659]
[1735220886736,7.74789,188.61,188.53,9.7449659]
[1735220887810,7.74789,188.61,188.52,9.7449659]
[1735220888013,0.12549,188.59,188.47,1.5226]
[1735220888216,0.12549,188.59,188.49,9.7449659]
[1735220888705,0.12549,188.57,188.44,0.79569479]
[1735220888906,20.0,188.55,188.48,9.7449659]
[1735220889119,20.0,188.55,188.49,9.7449659]
[1735220889929,20.12549,188.57,188.49,9.7449659]
[1735220890135,20.0,188.57,188.51,9.7449659]
[1735220890320,7.6224,188.61,188.52,9.7449659]
[1735220890639,7.6224,188.61,188.49,9.7449659]
[1735220890640,0.12549,188.56,188.49,9.7449659]
[1735220890808,23.902374,188.58,188.48,9.7449659]
[1735220891011,23.902374,188.58,188.49,9.7449659]
[1735220891224,23.902374,188.58,188.45,0.79567529]
[1735220891427,20.0,188.55,188.43,0.79567521]
[1735220891632,20.0,188.55,188.47,9.7449659]
[1735220891830,20.0,188.55,188.48,9.7449659]
[1735220893142,20.0,188.55,188.49,9.7449659]
[1735220893354,20.0,188.57,188.5,9.7449659]
[1735220893641,37.6224,188.61,188.51,9.7449659]
[1735220894246,7.6224,188.61,188.51,9.7449659]
[1735220894542,7.6224,188.61,188.52,9.7449659]
[1735220894743,7.6224,188.61,188.54,9.7449659]
[1735220895053,7.6224,188.61,188.53,9.7449659]
[1735220895844,7.6224,188.61,188.54,9.7449659]
[1735220896155,7.6224,188.61,188.54,15.22201056]
[1735220896845,0.12549,188.6,188.52,15.22201056]
[1735220897639,0.12549,188.6,188.53,15.22201056]
[1735220898850,7.6224,188.61,188.53,15.22201056]
[1735220899228,0.12549,188.6,188.52,15.22201056]
[1735220901035,23.902374,188.6,188.5,15.22201056]
[1735220901260,20.0,188.57,188.49,15.22201056]
[1735220903021,20.0,188.57,188.5,15.22201056]
[1735220903749,20.0,188.57,188.49,15.22201056]
[1735220904754,23.902374,188.56,188.49,15.22201056]
[1735220905055,23.902374,188.56,188.46,15.22201056]
[1735220906337,23.902374,188.56,188.48,15.22201056]
[1735220906658,23.902374,188.56,188.47,15.22201056]
[1735220907339,23.902374,188.56,188.48,15.22201056]
[1735220907757,23.902374,188.56,188.47,15.22201056]
[1735220908126,0.12549,188.5,188.39,121.5185]
[1735220908331,0.12549,188.5,188.42,15.22201056]
[1735220908737,0.12549,188.5,188.43,15.22201056]
[1735220908946,20.0,188.52,188.44,15.22201056]
[1735220909327,7.6712,188.55,188.46,15.22201056]
[1735220909762,23.902374,188.54,188.45,15.22201056]
[1735220911858,0.12549,188.5,188.39,133.2703]
[1735220912164,0.12549,188.5,188.41,15.22201056]
[1735220912371,23.902374,188.5,188.4,15.22201056]
[1735220912930,23.902374,188.5,188.39,135.22201056]
[1735220913867,0.12549,188.48,188.39,135.22201056]
[1735220914092,20.12549,188.45,188.39,120.0]
[1735220914675,0.12549,188.43,188.39,120.0]
[1735220914978,20.0,188.45,188.39,120.0]
[1735220915147,7.6712,188.49,188.4,15.22201056]
[1735220915575,23.902374,188.48,188.39,135.22201056]
[1735220915969,23.902374,188.48,188.39,120.0]
[1735220916180,23.902374,188.48,188.4,15.22201056]
[1735220916181,0.12549,188.48,188.4,15.22201056]
[1735220916483,0.12549,188.48,188.39,135.22201056]
[1735220917189,0.12549,188.48,188.4,15.22201056]
[1735220917359,7.6712,188.49,188.4,15.22201056]
[1735220918255,7.6712,188.49,188.4,9.75626778]
[1735220919490,7.6712,188.49,188.41,9.75626778]
[1735220919787,7.6712,188.49,188.4,9.75626778]
[1735220920982,0.12549,188.48,188.39,129.75626778]
[1735220921179,23.902374,188.48,188.39,120.0]
[1735220922090,23.902374,188.48,188.39,129.75626778]
[1735220922391,23.902374,188.48,188.39,120.0]
[1735220923187,23.902374,188.48,188.39,129.75626778]
[1735220923695,0.12549,188.48,188.4,9.75626778]
[1735220924394,0.12549,188.48,188.39,129.75626778]
[1735220924969,7.6712,188.49,188.42,9.75626778]
[1735220925389,7.6712,188.49,188.41,9.75626778]
[1735220926296,0.12549,188.48,188.39,129.75626778]
[1735220927273,0.12549,188.48,188.4,9.75626778]
[1735220928210,23.902374,188.48,188.39,120.0]
[1735220929295,20.0,188.45,188.39,120.0]
[1735220929599,23.902374,188.48,188.39,120.0]
[1735220929782,0.12549,188.48,188.39,129.75626778]
[1735220930174,20.0,188.46,188.39,129.75626778]
[1735220930369,7.6712,188.49,188.39,129.75626778]
[1735220930591,7.6712,188.49,188.41,9.75626778]
[1735220930798,7.6712,188.49,188.4,0.79600582]
[1735220931099,7.6712,188.49,188.41,9.75626778]
[1735220931970,7.6712,188.49,188.4,9.75626778]
[1735220932379,7.6712,188.49,188.39,129.75626778]
[1735220932591,23.902374,188.48,188.39,129.75626778]
[1735220932772,23.902374,188.48,188.39,120.0]
[1735220933475,63.187174,188.48,188.39,120.0]
[1735220933677,33.187174,188.48,188.39,120.0]
[1735220936708,0.12549,188.46,188.39,120.0]
[1735220936909,0.12549,188.43,188.39,120.0]
[1735220937088,20.12549,188.43,188.39,120.0]
[1735220938408,43.902374,188.43,188.39,120.0]
[1735220938905,0.12549,188.41,188.39,120.0]
[1735220940286,20.0,188.43,188.39,120.0]
[1735220940485,20.0,188.46,188.39,120.0]
[1735220941214,0.12549,188.45,188.39,120.0]
[1735220942181,20.0,188.46,188.39,120.0]
[1735220942382,20.0,188.46,188.39,129.75626778]
[1735220942601,20.0,188.46,188.39,120.0]
[1735220944288,23.902374,188.45,188.39,120.0]
[1735220946091,0.12549,188.41,188.39,120.0]
[1735220946405,20.0,188.42,188.39,120.0]
[1735220946806,33.063484,188.45,188.39,120.0]
[1735220947115,30.0,188.48,188.39,120.0]
[1735220947316,39.2849,188.48,188.39,120.0]
[1735220947894,23.902374,188.47,188.39,120.0]
[1735220948118,23.776884,188.47,188.39,120.0]
[1735220948294,23.776884,188.48,188.39,120.0]
[1735220948495,20.0,188.45,188.39,120.0]
[1735220948698,0.12549,188.47,188.39,120.0]
[1735220950624,7.6712,188.49,188.39,120.0]
[1735220950826,30.0,188.52,188.4,9.75626778]
[1735220950992,30.0,188.52,188.39,120.0]
[1735220950993,30.0,188.52,188.39,129.75626778]
[1735220951196,23.902374,188.49,188.39,120.0]
[1735220952012,20.0,188.46,188.39,120.0]
[1735220952939,30.0,188.52,188.39,129.75626778]
[1735220953102,20.0,188.48,188.39,129.75626778]
[1735220954211,0.12549,188.47,188.39,120.0]
[1735220954515,20.12549,188.47,188.39,120.0]
[1735220956137,20.12549,188.47,188.39,129.75626778]
[1735220956934,23.776884,188.5,188.4,9.75626778]
[1735220957310,20.0,188.51,188.41,9.75626778]
[1735220957510,0.12549,188.5,188.41,9.75626778]
[1735220958019,9.2819,188.54,188.44,9.75626778]
[1735220958534,30.0,188.56,188.46,9.75626778]
[1735220958741,30.0,188.56,188.45,9.75626778]
[1735220959323,23.902374,188.55,188.43,6.4908]
[1735220959625,23.902374,188.55,188.44,9.75626778]
[1735220959811,20.0,188.54,188.45,9.75626778]
[1735220960425,20.0,188.54,188.46,9.75626778]
[1735220961042,20.0,188.54,188.44,9.75626778]
[1735220962144,20.0,188.55,188.46,9.75626778]
[1735220962442,20.0,188.56,188.47,1.6177]
[1735220962611,20.0,188.56,188.47,11.37396778]
[1735220962810,21.75637516,188.61,188.48,9.75626778]
[1735220963008,15.48825373,188.61,188.49,9.75626778]
[1735220963224,23.902374,188.6,188.49,9.75626778]
[1735220963620,23.776884,188.6,188.49,9.75626778]
[1735220964045,9.48400102,188.63,188.51,9.75626778]
[1735220964220,23.902374,188.61,188.49,9.75626778]
[1735220964539,23.902374,188.61,188.48,16.40196778]
[1735220964745,23.902374,188.61,188.49,9.75626778]
[1735220965109,23.902374,188.61,188.5,9.75626778]
[1735220965746,9.2774,188.63,188.5,9.75626778]
[1735220965950,20.0,188.6,188.51,9.75626778]
[1735220966318,20.0,188.6,188.52,9.75626778]
[1735220966526,20.0,188.61,188.53,11.37396778]
[1735220966830,23.902374,188.63,188.53,11.37396778]
[1735220967951,23.902374,188.63,188.53,1.6177]
[1735220968954,20.0,188.6,188.53,1.6177]
[1735220969246,0.12549,188.59,188.53,1.6177]
[1735220969548,20.0,188.6,188.53,1.6177]
[1735220970751,20.0,188.61,188.54,9.75626778]
[1735220970935,20.0,188.61,188.53,1.6177]
[1735220971620,20.0,188.61,188.53,11.37396778]
[1735220972154,16.83906717,188.64,188.56,6.6457]
[1735220972830,16.83906717,188.64,188.56,16.40196778]
[1735220973534,0.12549,188.63,188.56,6.6457]
[1735220973734,23.902374,188.63,188.56,6.6457]
[1735220973923,20.0,188.6,188.53,1.6177]
[1735220977960,23.902374,188.59,188.53,1.6177]
[1735220978461,0.12549,188.55,188.46,9.75626778]
[1735220978629,23.902374,188.55,188.46,9.75626778]
[1735220978822,20.0,188.52,188.44,17.78236778]
[1735220979254,0.12549,188.51,188.44,8.0261]
[1735220980654,23.902374,188.51,188.44,8.0261]
[1735220984064,0.12549,188.51,188.44,8.0261]
[1735220984262,20.0,188.54,188.45,15.2391706]
[1735220984560,23.902374,188.55,188.45,15.2391706]
[1735220985152,53.902374,188.55,188.45,15.2391706]
[1735220986365,23.902374,188.55,188.45,15.2391706]
[1735220986544,30.0,188.58,188.46,15.2391706]
[1735220986760,9.2797,188.59,188.47,15.2391706]
[1735220986945,30.0,188.6,188.48,15.2391706]
[1735220987273,8.1608,188.61,188.5,15.2391706]
[1735220987567,30.0,188.62,188.51,15.2391706]
[1735220987862,30.0,188.62,188.5,15.2391706]
[1735220988072,23.902374,188.61,188.5,15.2391706]
[1735220988243,23.902374,188.61,188.48,15.2391706]
[1735220988568,23.902374,188.59,188.48,15.2391706]
[1735220989064,23.902374,188.61,188.48,15.2391706]
[1735220989282,0.12549,188.57,188.49,15.2391706]
[1735220989452,20.0,188.58,188.5,15.2391706]
[1735220989641,23.776884,188.61,188.5,15.2391706]
[1735220990752,0.12549,188.6,188.51,15.2391706]
[1735220994767,20.0,188.58,188.5,15.2391706]
[1735220995448,20.12549,188.57,188.47,1.5034]
[1735220995655,20.12549,188.57,188.47,16.7425706]
[1735220998284,20.12549,188.57,188.47,1.5034]
[1735220998285,0.12549,188.55,188.47,1.5034]
[1735220999682,20.0,188.53,188.47,1.5034]
[1735221000791,0.12549,188.55,188.47,16.7425706]
[1735221001391,7.6365,188.57,188.47,16.7425706]
[1735221001889,23.902374,188.56,188.47,16.7425706]
[1735221002075,0.12549,188.56,188.48,15.2391706]
[1735221002374,0.12549,188.56,188.48,9.74799865]
[1735221002789,7.6365,188.57,188.48,9.74799865]
[1735221002971,20.0,188.58,188.49,9.74799865]
[1735221003286,0.12549,188.57,188.47,11.25139865]
[1735221003464,23.902374,188.57,188.47,1.5034]
[1735221003668,23.902374,188.53,188.42,1.6262]
[1735221003880,23.902374,188.53,188.42,11.37419865]
[1735221004069,23.902374,188.53,188.43,9.74799865]
[1735221004271,23.902374,188.53,188.44,9.74799865]
[1735221004674,23.902374,188.53,188.43,9.74799865]
[1735221004880,23.902374,188.53,188.42,1.6262]
[1735221004881,20.0,188.5,188.42,1.6262]
[1735221006564,23.902374,188.49,188.42,1.6262]
[1735221007065,20.0,188.51,188.42,11.37419865]
[1735221007567,23.902374,188.5,188.42,1.6262]
[1735221007932,23.902374,188.5,188.4,9.74799865]
[1735221008262,20.0,188.47,188.39,129.74799865]
[1735221008489,23.902374,188.46,188.39,120.0]
[1735221010592,20.0,188.47,188.4,9.74799865]
[1735221010893,0.12549,188.5,188.41,9.74799865]
[1735221011067,20.12549,188.5,188.4,9.74799865]
[1735221011269,20.0,188.48,188.39,129.74799865]
[1735221013404,23.902374,188.47,188.39,129.74799865]
[1735221013609,23.902374,188.47,188.39,120.0]
[1735221014201,23.902374,188.47,188.39,129.74799865]
[1735221014502,0.12549,188.47,188.39,129.74799865]
[1735221014799,20.0,188.47,188.39,129.74799865]
[1735221015599,20.0,188.47,188.41,9.74799865]
[1735221015794,30.0,188.57,188.44,9.74799865]
[1735221016002,30.0,188.57,188.45,9.74799865]
[1735221016575,23.902374,188.53,188.46,9.74799865]
[1735221017073,0.12549,188.55,188.46,9.74799865]
[1735221017273,0.12549,188.55,188.45,9.74799865]
[1735221018219,42.71470872,188.59,188.47,15.23338551]
[1735221018514,23.902374,188.58,188.47,15.23338551]
[1735221018804,23.902374,188.58,188.42,23.776884]
[1735221018978,23.902374,188.58,188.48,15.23338551]
[1735221019174,37.7727,188.59,188.48,15.23338551]
[1735221019574,20.0,188.55,188.48,15.23338551]
[1735221021012,23.902374,188.58,188.48,15.23338551]
[1735221021196,7.7727,188.59,188.5,15.23338551]
[1735221021390,47.1724,188.63,188.52,15.23338551]
[1735221021594,47.1724,188.63,188.51,15.23338551]
[1735221022578,20.0,188.6,188.51,15.23338551]
[1735221023709,20.0,188.6,188.5,15.23338551]
[1735221024507,20.0,188.6,188.51,15.23338551]
[1735221024684,20.0,188.6,188.52,15.23338551]
[1735221025304,7.8949,188.63,188.53,15.23338551]
[1735221025896,23.902374,188.62,188.51,15.23338551]
[1735221026193,20.0,188.57,188.49,16.74048551]
[1735221026609,0.12549,188.59,188.5,15.23338551]
[1735221026788,23.776884,188.58,188.5,15.23338551]
[1735221027095,20.0,188.59,188.5,15.23338551]
[1735221027294,23.902374,188.58,188.5,15.23338551]
[1735221027494,23.902374,188.58,188.51,15.23338551]
[1735221027912,20.0,188.6,188.52,15.23338551]
[1735221028404,7.8949,188.63,188.53,15.23338551]
[1735221028805,23.902374,188.62,188.52,15.23338551]
[1735221029815,23.902374,188.58,188.5,15.23338551]
[1735221030916,23.902374,188.58,188.51,15.23338551]
[1735221031123,20.0,188.6,188.51,15.23338551]
[1735221031409,7.8949,188.63,188.53,15.23338551]
[1735221031986,23.902374,188.62,188.53,15.23338551]
[1735221032187,23.902374,188.62,188.54,15.23338551]
[1735221032501,23.902374,188.62,188.53,15.23338551]
[1735221032819,23.902374,188.62,188.55,15.23338551]
[1735221032989,23.902374,188.62,188.54,15.23338551]
[1735221033185,7.8949,188.63,188.54,15.23338551]
[1735221033493,7.8949,188.68,188.54,15.23338551]
[1735221034010,23.902374,188.63,188.55,15.23338551]
[1735221034523,23.902374,188.63,188.54,15.23338551]
[1735221034813,20.0,188.6,188.51,15.23338551]
[1735221035013,20.0,188.58,188.49,16.74048551]
[1735221035192,20.0,188.57,188.49,16.74048551]
[1735221035916,0.12549,188.59,188.51,15.23338551]
[1735221036217,8.076,188.6,188.51,15.23338551]
[1735221036692,8.076,188.6,188.52,15.23338551]
[1735221037292,8.076,188.6,188.51,15.23338551]
[1735221037507,8.076,188.6,188.52,15.23338551]
[1735221037991,20.0,188.61,188.53,15.23338551]
[1735221038195,23.36416717,188.64,188.54,9.74190905]
[1735221038391,23.36416717,188.64,188.55,9.74190905]
[1735221041123,23.36416717,188.64,188.56,9.74190905]
[1735221041812,23.36416717,188.64,188.54,9.74190905]
[1735221042020,23.36416717,188.64,188.51,13.2613]
[1735221042021,23.902374,188.63,188.51,13.2613]
[1735221042187,20.0,188.6,188.51,9.74190905]
[1735221042591,23.902374,188.63,188.53,9.74190905]
[1735221043417,23.902374,188.63,188.52,9.74190905]
[1735221044514,23.902374,188.63,188.53,9.74190905]
[1735221046017,23.36416717,188.64,188.54,9.74190905]
[1735221046319,23.36416717,188.64,188.56,9.74190905]
[1735221046518,6.5251,188.64,188.56,9.74190905]
[1735221048796,6.5251,188.64,188.53,13.2598]
[1735221048998,6.5251,188.64,188.56,9.74190905]
[1735221049724,6.5251,188.64,188.57,9.74190905]
[1735221050228,6.5251,188.64,188.56,9.74190905]
[1735221050535,6.5251,188.64,188.57,9.74190905]
[1735221051231,6.5251,188.64,188.56,9.74190905]
[1735221051698,6.5251,188.64,188.57,9.74190905]
[1735221052827,20.0,188.66,188.59,9.74190905]
[1735221053006,17.1916,188.73,188.63,9.74190905]
[1735221053210,7.9191,188.73,188.64,9.74190905]
[1735221053605,7.9191,188.73,188.65,9.74190905]
[1735221054325,7.9191,188.73,188.66,9.74190905]
[1735221055629,7.9191,188.73,188.62,0.79489515]
[1735221055630,20.0,188.74,188.67,9.74190905]
[1735221056009,7.9191,188.77,188.67,9.74190905]
[1735221056611,7.9191,188.77,188.66,9.74190905]
[1735221057216,0.12549,188.76,188.66,9.74190905]
[1735221058113,20.0,188.74,188.64,9.74190905]
[1735221058317,0.12549,188.73,188.63,9.74190905]
[1735221058523,20.0,188.72,188.63,9.74190905]
[1735221059026,20.0,188.72,188.64,9.74190905]
[1735221059234,23.902374,188.73,188.64,9.74190905]
[1735221059435,23.902374,188.73,188.61,13.2548]
[1735221059436,23.902374,188.73,188.63,9.74190905]
[1735221060834,23.902374,188.73,188.61,9.74190905]
[1735221061015,23.902374,188.73,188.62,9.74190905]
[1735221061220,20.0,188.74,188.66,9.74190905]
[1735221061431,7.9191,188.77,188.68,9.74190905]
[1735221061734,7.9191,188.82,188.69,9.74190905]
[1735221061919,7.9191,188.82,188.71,9.74190905]
[1735221062117,7.9191,188.82,188.72,9.74190905]
[1735221062316,7.9191,188.82,188.73,9.74190905]
[1735221062637,7.9191,188.82,188.72,9.74190905]
[1735221062814,23.902374,188.81,188.7,9.74190905]
[1735221063013,23.902374,188.81,188.71,9.74190905]
[1735221063215,23.776884,188.81,188.71,9.74190905]
[1735221064243,23.776884,188.81,188.71,15.19415711]
[1735221065126,7.9191,188.82,188.73,15.19415711]
[1735221066036,7.9191,188.82,188.71,15.19415711]
[1735221067426,7.9191,188.82,188.74,15.19415711]
[1735221067625,7.9191,188.82,188.75,15.19415711]
[1735221068157,8.2077,188.86,188.78,15.19415711]
[1735221068656,8.2077,188.86,188.79,15.19415711]
[1735221068833,8.2077,188.86,188.76,0.79446615]
[1735221068834,8.2077,188.86,188.8,15.19415711]
[1735221069353,8.2077,188.9,188.81,15.19415711]
[1735221069530,8.2077,188.9,188.8,15.19415711]
[1735221070253,8.2077,188.9,188.82,15.19415711]
[1735221070738,8.2077,188.9,188.78,0.79420625]
[1735221070739,8.2077,188.9,188.81,15.19415711]
[1735221070941,8.2077,188.9,188.82,15.19415711]
[1735221071138,8.2077,188.9,188.83,15.19415711]
[1735221071346,8.2077,188.9,188.82,15.19415711]
[1735221071853,8.2077,188.9,188.83,15.19415711]
[1735221072233,8.2077,188.9,188.8,0.79412498]
[1735221072234,8.2077,188.9,188.82,15.19415711]
[1735221072435,8.2077,188.9,188.8,15.19415711]
[1735221072632,8.2077,188.9,188.76,20.0]
[1735221072633,8.2077,188.9,188.81,15.19415711]
[1735221072839,8.2077,188.9,188.82,15.19415711]
[1735221073043,8.2077,188.9,188.81,15.19415711]
[1735221074635,8.2077,188.9,188.82,15.19415711]
[1735221075231,8.2077,188.9,188.84,15.19415711]
[1735221075862,31.565274,188.96,188.85,15.19415711]
[1735221076040,23.902374,188.92,188.82,0.79407524]
[1735221076231,23.902374,188.92,188.81,15.19415711]
[1735221077363,23.902374,188.92,188.82,15.19415711]
[1735221077727,23.902374,188.92,188.81,15.19415711]
[1735221078149,7.6629,188.87,188.78,15.19415711]
[1735221078347,7.6629,188.87,188.76,15.19415711]
[1735221078542,7.6629,188.87,188.75,15.19415711]
[1735221078757,7.6629,188.87,188.76,15.19415711]
[1735221078946,7.6629,188.87,188.79,15.19415711]
[1735221079146,7.6629,188.87,188.8,15.19415711]
[1735221079351,7.6629,188.87,188.81,15.19415711]
[1735221080062,31.936374,188.94,188.81,15.19415711]
[1735221080266,31.936374,188.94,188.82,15.19415711]
[1735221080763,20.0,188.91,188.82,15.19415711]
[1735221080967,20.0,188.91,188.81,15.98827476]
[1735221081143,20.0,188.91,188.81,0.79411765]
[1735221081344,20.0,188.91,188.81,15.98827476]
[1735221081539,23.902374,188.9,188.8,15.19415711]
[1735221081738,23.902374,188.9,188.79,15.19415711]
[1735221082562,23.902374,188.9,188.8,15.19415711]
[1735221082769,23.902374,188.9,188.79,15.19415711]
[1735221083072,23.902374,188.9,188.8,15.19415711]
[1735221083273,20.0,188.87,188.74,13.2457]
[1735221083443,20.0,188.87,188.76,15.19415711]
[1735221084072,20.0,188.87,188.8,15.19415711]
[1735221084243,0.12549,188.89,188.8,15.19415711]
[1735221084444,20.12549,188.89,188.8,15.19415711]
[1735221084651,20.12549,188.89,188.79,15.19415711]
[1735221084966,20.12549,188.89,188.78,15.19415711]